Cogmind - Beta 14 @@@ ROGUE MODE // 2024.11.17 @ 16:54:42 Player: Fangrelle Result: Self-destructed Performance ------------- Evolutions (0) 0 Regions Visited (4) 800 Robots Destroyed (19) 95 Value Destroyed (355) 355 Prototype IDs (23) 460 Alien Tech Used (0) 0 Bonus (277) 277 TOTAL SCORE: 1987 Bonus ------- Follower Combat Kills 14 Aligned with FarCom 300 Friendly Fire -37 Cogmind --------- Core Integrity 100/250 Matter 300/300 Energy 125/125 System Corruption 0% Temperature Cool (0) Movement Treading (240) Ox1 Location -9/Mines Parts ------- > --- POWER (1) -------- Light Ion Engine > --- PROPULSION (2) --- Light Treads Light Treads > --- UTILITY (2) ------ High-capacity Storage Unit Targeting Computer > --- WEAPON (2) ------- Hammer > --- INVENTORY (20) --- High-capacity Matter Pod (200) High-capacity Matter Pod (190) Sensor Array Targeting Computer ECM Suite Light Armor Plating PSU Rigger Datajack Peak State ------------ > --- POWER ------------ Light Ion Engine > --- PROPULSION ------- Light Treads Light Treads > --- UTILITY ---------- Small Storage Unit Sensor Array > --- WEAPON ----------- Medium Laser Assault Rifle > --- INVENTORY -------- Light Ion Engine Wheel Wheel Large Matter Pod Utility Shielding Medium Laser Grenade Launcher Hammer [Rating: 7] Favorites ----------- Power Light Ion Engine Engine Light Ion Engine Propulsion Light Treads Treads Light Treads Leg Aluminum Leg Utility Targeting Computer Device Sensor Array Storage High-capacity Storage Unit Processor Targeting Computer Protection Light Armor Plating Weapon Hammer Energy Gun Medium Laser Ballistic Gun Assault Rifle Launcher Grenade Launcher Impact Weapon Hammer Build | -11 -10 -10 -10 -9 ------- Run | Yrd Mat Min Exi Min Slots Evolved . | . . . . . Power . | . . . . . Propulsion . | . . . . . Utility . | . . . . . Weapon . | . . . . . Parts Attached 16 | . 6 9 1 . Power 1 | . . 1 . . Engine 1 | . . 1 . . Core . | . . . . . Reactor . | . . . . . Propulsion 5 | . 2 3 . . Treads 5 | . 2 3 . . Leg . | . . . . . Wheel . | . . . . . Hover . | . . . . . Flight . | . . . . . Utility 6 | . 3 2 1 . Device 1 | . 1 . . . Storage 1 | . . . 1 . Processor 2 | . 1 1 . . Hackware . | . . . . . Protection 2 | . 1 1 . . Artifact . | . . . . . Weapon 4 | . 1 3 . . Energy Gun . | . . . . . Energy Cannon . | . . . . . Ballistic Gun . | . . . . . Ballistic Cannon . | . . . . . Launcher 2 | . 1 1 . . Special Weapon . | . . . . . Impact Weapon 2 | . . 2 . . Slashing Weapon . | . . . . . Piercing Weapon . | . . . . . Special Melee Weapon . | . . . . . Unidentified Prototypes . | . . . . . Parts Lost 6 | . . 6 . . Power 1 | . . 1 . . Propulsion 2 | . . 2 . . Utility 1 | . . 1 . . Weapon 2 | . . 2 . . Highest Loss Streak 6 | . . 6 . . To Critical Strikes . | . . . . . Average Slot Usage (%) 88 | . 94 88 85 . Engine 13 | . 14 13 14 . Treads 27 | . 28 27 28 . Device 1 | . 5 . . . Storage 5 | . 8 . 11 . Processor 11 | . 5 14 14 . Protection 7 | . 3 13 2 . Energy Gun 1 | . 6 . . . Ballistic Gun 5 | . 14 4 . . Launcher 3 | . 7 3 . . Impact Weapon 8 | . . 10 14 . Peak Build Rating 7 | . 7 7 7 . Average Rating 6 | . 6 6 6 . On Entrance 6 | 6 6 7 6 7 Naked Turns . | . . . . . Heaviest Build 45 | 12 14 11 45 . Greatest Support 40 | 20 40 40 40 . Greatest Overweight (x) 1 | . . . 1 . Average Overweight (x) . | . . . . . Largest Inventory Capacity 20 | . 8 5 20 . Average Capacity 9 | . 6 5 17 . Most Carried 8 | . 8 5 8 . Average Carried 5 | . 6 4 6 . Final Capacity 20 | 8 5 5 20 20 Final Carried 8 | 6 5 4 8 8 Class Distribution -------------------- 61% | Mutant 38% | Scavenger-Mutant Dominant Class ---------------- Mutant | -10/Materials Scavenger-Mutant | -10/Mines Mutant | -10/Exiles Mutant | -9/Mines Resources | -11 -10 -10 -10 -9 ----------- Run | Yrd Mat Min Exi Min Matter Collected 587 | 192 163 212 20 . Remotely . | . . . . . Salvage Created 526 | . 206 320 . . Parts 33 | . 23 10 . . Haulers Intercepted 1 | . 1 . . . Recyclers Shooed . | . . . . . Parts Field Recycled . | . . . . . Retrieved Matter . | . . . . . Parts Self-Destructed . | . . . . . Prevented . | . . . . . Kills | -11 -10 -10 -10 -9 ------- Run | Yrd Mat Min Exi Min Combat Hostiles Destroyed 10 | . 5 5 . . Melee 2 | . . 2 . . Guns 2 | . . 2 . . AOE 6 | . 5 1 . . Classes Destroyed 9 | . 6 3 . . Worker 1 | . 1 . . . Builder 1 | . 1 . . . Tunneler 2 | . . 2 . . Hauler 1 | . 1 . . . Recycler 2 | . . 2 . . Watcher 2 | . 2 . . . Swarmer 4 | . 3 1 . . Grunt 4 | . 2 2 . . Sentry 2 | . . 2 . . Best Kill Streak 3 | . 3 3 . . Combat Bots Only 3 | . 3 2 . . Max Kills in Single Turn 2 | . 2 1 . . Gunslinging . | . . . . . Exploded 2 | . 2 1 . . Melee 1 | . . 1 . . Uniques/NPCs Destroyed . | . . . . . Combat | -11 -10 -10 -10 -9 -------- Run | Yrd Mat Min Exi Min Hostile Shots Fired 87 | . 9 78 . . Missed 21 | . 4 17 . . Damage Taken 932 | . 91 841 . . Core 150 | . 22 128 . . Absorbed by Shields . | . . . . . Core Remaining (%) 100 | 100 . . . . Volleys Fired 29 | . 14 15 . . Largest 2 | . 2 2 . . Hottest 70 | . 70 50 . . Shots Fired 53 | . 28 25 . . Gun 37 | . 22 15 . . Cannon . | . . . . . Launcher 16 | . 6 10 . . Special . | . . . . . Kinetic 29 | . 14 15 . . Thermal 8 | . 8 . . . Explosive 16 | . 6 10 . . Electromagnetic . | . . . . . Robot Hit Streak 10 | . 5 10 . . Robot Miss Streak 2 | . 1 2 . . Penetration Max . | . . . . . Secondary Targets . | . . . . . Shots Hit Robots 41 | . 13 28 . . Core Hits 27 | . 12 15 . . Critical Kills . | . . . . . Critical Parts Destroyed 4 | . . 4 . . Critical Strikes 5 | . 1 4 . . Burn 1 | . 1 . . . Destroy 1 | . . 1 . . Smash 3 | . . 3 . . Melee Attacks 11 | . . 11 . . Impact 11 | . . 11 . . Slashing . | . . . . . Piercing . | . . . . . Sneak Attacks 2 | . . 2 . . Combat Hostiles . | . . . . . Follow-up Attacks . | . . . . . Damage Inflicted 1168 | . 361 807 . . Guns 279 | . 133 146 . . Cannons . | . . . . . Explosions 651 | . 228 423 . . Melee 238 | . . 238 . . Ramming . | . . . . . Kinetic 217 | . 71 146 . . Thermal 62 | . 62 . . . Explosive 651 | . 228 423 . . Electromagnetic . | . . . . . Impact 238 | . . 238 . . Slashing . | . . . . . Piercing . | . . . . . Highest Corruption . | . . . . . Average Corruption . | . . . . . Corruption Purged . | . . . . . Corruption Blocked . | . . . . . Overload Shots . | . . . . . Overflow Damage 166 | . 17 149 . . Projectiles . | . . . . . Explosions 24 | . 17 7 . . Melee 142 | . . 142 . . Knockbacks 1 | . . 1 . . Impact 1 | . . 1 . . Kinetic . | . . . . . Secondary . | . . . . . Self-Inflicted Damage 46 | . 46 . . . Shots 3 | . 3 . . . Rammed . | . . . . . Targets Rammed . | . . . . . Kicked . | . . . . . Crushed . | . . . . . Highest Temperature 49 | . 27 49 . . Average Temperature 19 | . 10 26 . . Received Heat Transfer 327 | . 6 321 . . Siege Activations . | . . . . . Robots Corrupted 2 | . . 2 . . Combat Hostiles . | . . . . . Parts Fried 7 | . . 7 . . Impact Corruptions 6 | . . 6 . . Robots Melted . | . . . . . Combat Hostiles . | . . . . . Parts Melted . | . . . . . Heat Transferred 259 | . 259 . . . Parts Sabotaged . | . . . . . Parts Stolen . | . . . . . Parts Stripped . | . . . . . Power Chain Reactions . | . . . . . Alert | -11 -10 -10 -10 -9 ------- Run | Yrd Mat Min Exi Min Peak Influence 180 | . 180 145 . . Initial 64 | . . 64 . . Average 72 | . 86 64 . . Maximum Alert Level . | . . . . . Low Security (%) 100 | . 100 100 . . Level 1 . | . . . . . Level 2 . | . . . . . Level 3 . | . . . . . Level 4 . | . . . . . Level 5 . | . . . . . High Security . | . . . . . Max Security . | . . . . . Squads Dispatched 2 | . 2 . . . Investigation 1 | . 1 . . . Extermination . | . . . . . Reinforcement 1 | . 1 . . . Assault . | . . . . . Garrison . | . . . . . Intercept . | . . . . . Searches Triggered . | . . . . . Construction Impeded . | . . . . . Haulers Reinforced . | . . . . . Active Scanning Responses . | . . . . . Cargo Convoy Interrupts . | . . . . . Stealth | -11 -10 -10 -10 -9 --------- Run | Yrd Mat Min Exi Min Distress Signals . | . . . . . Communications Jammed . | . . . . . Distress Signals . | . . . . . Times Spotted 16 | . 9 7 . . Peak Tracking Total 4 | . 4 3 . . Tactical Retreats . | . . . . . Traps | -11 -10 -10 -10 -9 ------- Run | Yrd Mat Min Exi Min Traps Triggered . | . . . . . Indirectly . | . . . . . Trap Hack Attempts . | . . . . . Triggered . | . . . . . Disarmed . | . . . . . Reprogrammed . | . . . . . Reused . | . . . . . Traps Extracted . | . . . . . Installed . | . . . . . Triggered . | . . . . . Objects Rigged 1 | . 1 . . . Machines | -11 -10 -10 -10 -9 ---------- Run | Yrd Mat Min Exi Min Machines Disabled 1 | . 1 . . . Max in Single Turn 1 | . 1 . . . Machines Repaired . | . . . . . Machines Dismantled . | . . . . . Machines Sabotaged . | . . . . . Overloaded Fab Kills . | . . . . . Hacking | -11 -10 -10 -10 -9 --------- Run | Yrd Mat Min Exi Min Machines Accessed 8 | . 6 . 2 . Terminals 5 | . 5 . . . Fabricators . | . . . . . Repair Stations . | . . . . . Recycling Units 1 | . 1 . . . Scanalyzers . | . . . . . Garrison Access . | . . . . . Total Hacks 31 | . 26 . 5 . Successful 20 | . 15 . 5 . Failed 10 | . 10 . . . Catastrophic . | . . . . . Database Lockouts 1 | . 1 . . . Manual 26 | . 25 . 1 . Terminals 23 | . 23 . . . Fabricators . | . . . . . Repair Stations . | . . . . . Recycling Units 3 | . 3 . . . Scanalyzers . | . . . . . Garrison Access . | . . . . . Terminal Hacks 6 | . 1 . 5 . Record 4 | . . . 4 . Robot Analysis 1 | . 1 . . . Derelict Proto ID Bank 1 | . . . 1 . Fabricator Hacks . | . . . . . Repair Station Hacks . | . . . . . Recycling Unit Hacks 2 | . 2 . . . Retrieve Matter 1 | . 1 . . . Retrieve Components 1 | . 1 . . . Scanalyzer . | . . . . . Garrison Access Hacks . | . . . . . Unauthorized Hacks 12 | . 12 . . . Terminals 11 | . 11 . . . Assimilate 4 | . 4 . . . Botnet 5 | . 5 . . . Detonate 1 | . 1 . . . Operators 1 | . 1 . . . Fabricators . | . . . . . Repair Stations . | . . . . . Recycling Units 1 | . 1 . . . Tunnel 1 | . 1 . . . Scanalyzers . | . . . . . Garrison Access . | . . . . . Data Cores Recovered . | . . . . . Used . | . . . . . Hacking Detections 5 | . 5 . . . Full Trace Events . | . . . . . Feedback Events . | . . . . . Feedback Blocked . | . . . . . Robot Schematics Acquired . | . . . . . Robots Built . | . . . . . Authchips . | . . . . . Time . | . . . . . Total Robot Build Rating . | . . . . . Part Schematics Acquired . | . . . . . Parts Built . | . . . . . Authchips . | . . . . . Time . | . . . . . Total Part Build Rating . | . . . . . Parts Repaired . | . . . . . Time . | . . . . . Parts Recycled . | . . . . . Recycled Matter . | . . . . . Retrieved Matter . | . . . . . Retrieved Components . | . . . . . Parts Scanalyzed . | . . . . . Part Schematics Acquired . | . . . . . Parts Damaged . | . . . . . Bothacking | -11 -10 -10 -10 -9 ------------ Run | Yrd Mat Min Exi Min Used RIF Installer . | . . . . . Robots Hacked . | . . . . . Non-combat . | . . . . . Combat . | . . . . . Robot Hacks Applied . | . . . . . Relay Couplers Released . | . . . . . Fabnet Peak Effective % . | . . . . . Robots Rewired . | . . . . . Allies Hacked . | . . . . . Hacks Repelled . | . . . . . Allies | -11 -10 -10 -10 -9 -------- Run | Yrd Mat Min Exi Min Total Allies 3 | . 1 2 . . Largest Group 2 | . 1 2 2 . Highest-Rated Group 49 | . 10 49 49 . Highest-Rated Ally 31 | . 10 31 31 . Total Orders . | . . . . . Ally Attacks 10 | . . 10 . . Total Damage 130 | . . 130 . . Kills 2 | . . 2 . . Allies Corrupted . | . . . . . Allies Melted . | . . . . . Intel | -11 -10 -10 -10 -9 ------- Run | Yrd Mat Min Exi Min Robot Analysis Total 1 | . 1 . . . Derelict Logs Recovered 1 | . . 1 . . Drone Launches . | . . . . . Drone Recoveries . | . . . . . Exploration | -11 -10 -10 -10 -9 ------------- Run | Yrd Mat Min Exi Min Turns Passed 2728 | . 718 1230 780 . Spaces Moved 1471 | 1 410 710 350 . Core . | . . . . . Treads 1470 | . 410 710 350 . Legs 1 | 1 . . . . Wheels . | . . . . . Hover . | . . . . . Flight . | . . . . . Fastest Speed 120 | 120 160 160 160 . Average Speed 174 | 120 160 160 221 . Slowest Speed 240 | 120 160 160 240 . Overloaded Moves . | . . . . . Propulsion Burnouts . | . . . . . Robots Hopped . | . . . . . Cave-ins Triggered . | . . . . . Exploration Rate (%) 49 | 2 72 98 70 4 Regions Visited 4 Branch Regions 3 Pre-discovered Areas 3 | . 1 1 1 . Known Exits Taken . | . . . . . Unknown Exits Taken 4 | 1 1 1 1 . Scrap Searched 1 | . . 1 . . Spaces Dug 8 | . 8 . . . Terrain Destroyed 106 | . 49 57 . . Melee . | . . . . . Projectile . | . . . . . AOE 106 | . 49 57 . . Terrain Rammed . | . . . . . Walls Destroyed . | . . . . . Machines Disabled . | . . . . . Actions | -11 -10 -10 -10 -9 --------- Run | Yrd Mat Min Exi Min Total 1561 | . 448 758 355 . Wait 11 | . . 11 . . Move 1467 | . 409 709 349 . Hop . | . . . . . Pick Up 13 | . 8 1 4 . Fast Attach 7 | . 2 4 1 . Attach 5 | . 3 2 . . Detach 1 | . 1 . . . Swap 4 | . 1 3 . . Drop 13 | . 10 2 1 . Fire 29 | . 14 15 . . Melee 11 | . . 11 . . Ram . | . . . . . Kick . | . . . . . Crush . | . . . . . Escape Stasis . | . . . . . Rewire . | . . . . . Trap . | . . . . . Miscellaneous . | . . . . . Route ------- -11/Scrapyard -10/Materials (discovered 4 exits: [*Mat x3] / [*Min]) -10/Mines (discovered 3 exits: [*Mat x2] / *Exi) -10/Exiles -9/Mines History --------- Turn | Location | Event 1 | -11/Scrapyard | Discovered new exit (range 0) 1 | -11/Scrapyard | Entered Materials 220 | -10/Materials | Discovered new exit (range 6) 326 | -10/Materials | Build established: Mutant 368 | -10/Materials | Discovered new exit (range 3) 431 | -10/Materials | Central database locked down 573 | -10/Materials | Discovered new exit (range 5) 599 | -10/Materials | Discovered new exit (range 15) 719 | -10/Materials | Entered Mines 719 | -10/Mines | Accompanied by 1 ally 1080 | -10/Mines | Core integrity fell below 50% 1115 | -10/Mines | Lost 6 parts (1p2n1u2w) 1147 | -10/Mines | Learned location of Storage (-9) 1322 | -10/Mines | Learned 4 Materials zone layouts 1343 | -10/Mines | Build established: Scavenger-Mutant 1434 | -10/Mines | Discovered new exit (range 5) 1453 | -10/Mines | Deemed a non-threat by the Exiles lab entrance 1453 | -10/Mines | Discovered new exit (range 5) 1773 | -10/Mines | Discovered new exit (range 10) 1949 | -10/Mines | Entered Exiles 1949 | -10/Exiles | Accompanied by 2 allies 1979 | -10/Exiles | Led the pair of lost Derelicts to a safe place 1993 | -10/Exiles | Met 8R-AWN 2015 | -10/Exiles | Met EX-HEX 2119 | -10/Exiles | Met EX-DEC 2339 | -10/Exiles | Learned location of Zion (-7) 2365 | -10/Exiles | Build established: Mutant 2380 | -10/Exiles | Met EX-BIN 2414 | -10/Exiles | Aligned with FarCom system 2416 | -10/Exiles | Given EX-Vault access code 2471 | -10/Exiles | Opened EX-Vault 2486 | -10/Exiles | Found PSU Rigger 2537 | -10/Exiles | Warned to stay clear of 0b10 Research branches 2703 | -10/Exiles | Discovered new exit (range 14) 2729 | -10/Exiles | Left Exiles lab with PSU Rigger 2729 | -10/Exiles | Entered Mines 2729 | -9/Mines | Self-destructed Last Messages --------------- AWS/Thermal Latent Energy Streamer Gui. Plasma Cannon Firepult YOLO Cannon AWS/Gauss XL Autogun Array AWS/Autocannon Field Lobotomy Kit Longsword +1 Deploy-a-Sentry 02486_ Acquired PSU Rigger. EX-BIN: Oh yeah, I'd suggest you stay away from the 0b10 Research branches, since the FarCom signals could be picked up there, but you're welcome to try if you really want to. And if we have to leave here due to unforeseen circumstances, don't worry the FarCom system will continue to maintain contact via our distributed network. EX-BIN: And don't even think about spreading that code around. We're gonna change it right after you leave. Most certainly not to something like 1234 which I did last time as a little joke and some thief managed to sneak in here and steal a few of HEX's prototypes. 02703_ EXIT=FOUND LOCATION=UNKNOWN GOAL=ESCAPE 02729_ Receiving FarCom transmissions... Map ----- +----------------------------------------------------+ | ??????????????????????????????????????????????? | | ??????????????????????????????????????????????? | | ??????????????????????????????????????????????? | | ??????????????????????????????????????????????? | | ??????????????????????????????????????????????? | | ??????????????????????????????????????????????? | | ??????????????????????????????????????????????? | | ??????????????????????????????????????????????? | | ??????????????????????????????????????????????? | | ??????????????????????????????????????????????? | | ??????????????????????????????????????????????? | | ??????????????????????????????????????????????? | | ??????????????????????????????????????????????? | | ??????????????????????????????????????????????? | | ??????????????????????????????????????????????? | | ??????????????????????????????????????????????? | | ??????????????????????????????????????????????? | | ??????????????????????????????????????????????? | | ??????????????????????????????????????????????? | | ??????????????????????????????????????????????? | | ??????????????????????????????????????????????? | | ??????????????????????????????????????????????? | | ??????????????????#######?????????????????????? | | ??????????????????# #?????????????????????? | | ??????????????????# ### #??????????? | | ??????????????????# kk@ #?????????? | | ???????????"" ##???????????????? | | ??????????""" # ####????????????????? | | ????????? ##### #?#???????????????????? | | ???????? ???????#######?????????????????????? | | ??????????????????????????????????????????????? | | ??????????????????????????????????????????????? | | ??????????????????????????????????????????????? | | ??????????????????????????????????????????????? | | ??????????????????????????????????????????????? | | ??????????????????????????????????????????????? | | ??????????????????????????????????????????????? | | ??????????????????????????????????????????????? | | ??????????????????????????????????????????????? | | ??????????????????????????????????????????????? | | ??????????????????????????????????????????????? | | ??????????????????????????????????????????????? | | ??????????????????????????????????????????????? | | ??????????????????????????????????????????????? | | ??????????????????????????????????????????????? | | ??????????????????????????????????????????????? | | ??????????????????????????????????????????????? | | ??????????????????????????????????????????????? | | ??????????????????????????????????????????????? | | ??????????????????????????????????????????????? | +----------------------------------------------------+ Best States ------------- Heat Dissipation 25 Energy Generation 10 Energy Capacity 125 Matter Stores 300 Matter Capacity 300 Sight Range 16 Robot Scan Range 14 Terrain Scan Density 10 Armor Coverage 150 Evasion (%) 40 Targeting Accuracy 10 Recoil Reduction 2 Item Schematics ----------------- None Robot Schematics ------------------ None Fabricated ------------ Nothing Alien Tech Used ----------------- None Achievements -------------- None Challenges ------------ None Game ------ Seed SigixArcSink Manual? 0 Play Time 00:09:34 Cumulative 104.0 hours Start 2024.11.17 @ 16:45:02 End 2024.11.17 @ 16:54:42 Sessions 1 Manual Loads 0 Difficulty Rogue Special Mode None Game No. 186 Rogue 186 Adventurer 0 Explorer 0 Win Type - Total 0 Types 0/0/0/0/0/0/0/0/0 Lore% 42 Gallery% 39 Achievement% 35 Wizard Run 0 Options --------- Layout 0 ASCII 0 Keyboard 0 Movement Mouse Keybinds 0 Fullscreen 1 Font 24/Cog Map View 91x25 Zoom Use 88% Tactical HUD 1 Map Filters NONE Filters NONE Steam 1 RUN: d3387666-9815-491a-9f40-01290d385c4a